fUSD/lending_fUSD_20240526
["ID","MTS","AMOUNT","RATE_DAILY","PERIOD"]
[327970560,1716730248730,-808.0,0.00026518,2]
[327970561,1716730248744,-2397.0,0.00026518,2]
[327970562,1716730248753,-215.0,0.00026518,2]
[327970563,1716730248763,-150.0,0.00026518,2]
[327970564,1716730248772,-1137.0,0.00026518,2]
[327970565,1716730248782,-1650.0,0.00026518,2]
[327970566,1716730248791,-3164.0,0.00026518,2]
[327970567,1716730248801,-289.0,0.00026518,2]
[327970568,1716730248811,-5764.0,0.00026518,2]
[327970569,1716730248821,-1467.0,0.00026518,2]
[327970570,1716730248830,-975.0,0.00026518,2]
[327970571,1716730248839,-5138.0,0.00026518,2]
[327970572,1716730248848,-1645.0,0.00026518,2]
[327970573,1716730248858,-1225.0,0.00026518,2]
[327970574,1716730248867,-1260.0,0.00026518,2]
[327970575,1716730248876,-151.686478,0.00026518,7]
[327970576,1716730248885,-152.416016,0.00026518,7]
[327970577,1716730248894,-151.593538,0.00026518,7]
[327970578,1716730248903,-151.0,0.00026518,7]
[327970579,1716730248912,-150.01308978,0.0002655,2]
[327970580,1716730248921,-151.0,0.00026551,7]
[327970581,1716730248930,-742.67,0.000266,2]
[327970582,1716730248940,-995.46,0.000266,2]
[327970583,1716730248949,-150.07759401,0.00026614,2]
[327970584,1716730248959,-208.63856344,0.00026669,2]
[327970585,1716730248968,-900.0,0.00026697,2]
[327970586,1716730248977,-600.0,0.00026697,2]
[327970587,1716730248987,-501.22,0.00026712,2]
[327970588,1716730248996,-208.63856344,0.0002673,2]
[327970589,1716730249006,-150.0,0.00026739,2]
[327970590,1716730249015,-156.20486069,0.00026739,2]
[327970591,1716730249025,-156.20486069,0.00026792,2]
[327970592,1716730249034,-150.01308978,0.00026811,2]
[327970593,1716730249044,-2053.6367066,0.00026836,2]
[327970594,1716730249053,-189.93,0.00026921,2]
[327970595,1716730249063,-592.75613575,0.00026971,2]
[327970596,1716730249075,-208.63856344,0.00026982,2]
[327970597,1716730249084,-157.03247,0.00026997,2]
[327970598,1716730249093,-2000.0,0.00027,2]
[327970599,1716730249103,-868.0,0.00027,4]
[327970600,1716730249112,-155.0,0.00027,4]
[327970601,1716730249122,-156.11113617,0.00027,2]
[327970602,1716730249131,-1500.0,0.00027,2]
[327970603,1716730249140,-1500.0,0.00027,2]
[327970604,1716730249150,-1500.0,0.00027,2]
[327970605,1716730249160,-1500.0,0.00027,2]
[327970606,1716730249171,-1500.0,0.00027,2]
[327970607,1716730249181,-1656.44,0.00027,2]
[327970608,1716730249191,-1500.0,0.00027,2]
[327970609,1716730249202,-1500.0,0.00027,2]
[327970610,1716730249212,-1500.0,0.00027,2]
[327970611,1716730249222,-1500.0,0.00027,2]
[327970612,1716730249231,-729.516013,0.00027,2]
[327970613,1716730249240,-1200.0,0.00027,2]
[327970614,1716730249249,-172.0,0.00027,2]
[327970615,1716730249258,-152.2188722,0.00027022,2]
[327970616,1716730249267,-157.03247,0.00027199,2]
[327970617,1716730249276,-156.20486069,0.00027217,2]
[327970618,1716730249286,-150.0,0.00027243,2]
[327970619,1716730249295,-900.0,0.00027245,2]
[327970620,1716730249305,-600.0,0.00027245,2]
[327970621,1716730249314,-500.0,0.00027245,2]
[327970622,1716730249324,-500.0,0.00027245,2]
[327970623,1716730249333,-1155.28042117,0.00027307,2]
[327970624,1716730249342,-150.0,0.00027394,10]
[327970625,1716730249351,-150.0,0.00027394,10]
[327970626,1716730249360,-150.0,0.00027394,10]
[327970627,1716730249370,-150.0,0.00027394,10]
[327970628,1716730249379,-150.0,0.00027394,10]
[327970629,1716730249389,-155.0,0.00027395,2]
[327970630,1716730249399,-397227.59622125,0.00027395,2]
[327970631,1716730249408,-153.013944,0.00027395,7]
[327970632,1716730249417,-151.0,0.00027395,7]
[327970633,1716730249426,-151.0,0.00027395,7]
[327970634,1716730249435,-151.0,0.00027395,7]
[327970635,1716730249445,-151.0,0.00027395,7]
[327970636,1716730249454,-151.0,0.00027395,7]
[327970637,1716730249463,-151.0,0.00027395,7]
[327970638,1716730249473,-151.0,0.00027395,7]
[327970639,1716730249482,-151.0,0.00027395,7]
[327970640,1716730249491,-151.0,0.00027395,7]
[327970641,1716730249501,-151.0,0.00027395,7]
[327970642,1716730249510,-151.0,0.00027395,7]
[327970643,1716730249519,-151.0,0.00027395,7]
[327970644,1716730249529,-151.0,0.00027395,7]
[327970645,1716730249539,-151.0,0.00027395,7]
[327970646,1716730249549,-151.0,0.00027395,7]
[327970647,1716730249559,-151.0,0.00027395,7]
[327970648,1716730249568,-182.392427,0.00027395,7]
[327970649,1716730249578,-151.0,0.00027395,7]
[327970650,1716730249587,-151.0,0.00027395,7]
[327970651,1716730249598,-163.47916,0.00027395,7]
[327970652,1716730249608,-154.001793,0.00027395,7]
[327970653,1716730249620,-151.0,0.00027395,7]
[327970654,1716730249631,-154.383437,0.00027395,7]
[327970655,1716730249640,-215.336349,0.00027395,7]
[327970656,1716730249651,-151.0,0.00027395,7]
[327970657,1716730249661,-151.0,0.00027395,7]
[327970658,1716730249672,-151.0,0.00027395,7]
[327970659,1716730249682,-151.0,0.00027395,7]
[327970660,1716730249693,-151.0,0.00027395,7]
[327970661,1716730249703,-151.0,0.00027395,7]
[327970662,1716730249713,-151.0,0.00027395,7]
[327970663,1716730249723,-151.0,0.00027395,7]
[327970664,1716730249737,-151.0,0.00027395,7]
[327970665,1716730249746,-151.0,0.00027395,7]
[327970666,1716730249756,-151.0,0.00027395,7]
[327970667,1716730249766,-151.0,0.00027395,7]
[327970668,1716730249777,-151.0,0.00027395,7]
[327970669,1716730249787,-151.0,0.00027395,7]
[327970670,1716730249797,-151.0,0.00027395,7]
[327970671,1716730249806,-151.0,0.00027395,7]
[327970672,1716730249818,-151.0,0.00027395,7]
[327970673,1716730249829,-151.0,0.00027395,7]
[327970674,1716730249840,-151.0,0.00027395,7]
[327970675,1716730249850,-151.0,0.00027395,7]
[327970676,1716730249860,-151.0,0.00027395,7]
[327970677,1716730249870,-151.0,0.00027395,7]
[327970678,1716730249881,-151.0,0.00027395,7]
[327970679,1716730249890,-151.0,0.00027395,7]
[327970680,1716730249899,-151.0,0.00027395,7]
[327970681,1716730249909,-151.0,0.00027395,7]
[327970682,1716730249918,-151.0,0.00027395,7]
[327970683,1716730249928,-151.0,0.00027395,7]
[327970684,1716730249938,-151.0,0.00027395,7]
[327970685,1716730249947,-151.0,0.00027395,7]
[327970686,1716730249958,-151.0,0.00027395,7]
[327970687,1716730249968,-151.0,0.00027395,7]
[327970688,1716730249978,-151.0,0.00027395,7]
[327970689,1716730249988,-151.0,0.00027395,7]
[327970690,1716730249998,-151.0,0.00027395,7]
[327970691,1716730250008,-154.025365,0.00027395,7]
[327970692,1716730250019,-151.0,0.00027395,7]
[327970693,1716730250028,-151.0,0.00027395,7]
[327970694,1716730250038,-151.0,0.00027395,7]
[327970695,1716730250048,-151.0,0.00027395,7]
[327970696,1716730250058,-150.0,0.00027396,10]
[327970697,1716730250068,-150.0,0.00027396,10]
[327970698,1716730250078,-150.0,0.00027396,10]
[327970699,1716730250088,-150.0,0.00027396,10]
[327970700,1716730250098,-160.54462895,0.00027397,4]
[327970701,1716730250107,-500.0,0.00027397,4]
[327970702,1716730250117,-500.0,0.00027397,4]
[327970703,1716730250127,-500.0,0.00027397,4]
[327970704,1716730250137,-500.0,0.00027397,4]
[327970705,1716730250148,-500.0,0.00027397,4]
[327970706,1716730250157,-170.76306044,0.00027397,4]
[327970707,1716730250168,-151.0,0.00027397,7]
[327970708,1716730250178,-500.0,0.00027397,4]
[327970709,1716730250188,-500.0,0.00027397,4]
[327970710,1716730250197,-500.0,0.00027397,4]
[327970711,1716730250207,-500.0,0.00027397,2]
[327970712,1716730250217,-160.55,0.00027397,4]
[327970713,1716730250226,-151.0,0.00027397,7]
[327970714,1716730250236,-500.0,0.00027397,4]
[327970715,1716730250246,-500.0,0.00027397,4]
[327970716,1716730250256,-500.0,0.00027397,4]
[327970717,1716730250265,-500.0,0.00027397,4]
[327970718,1716730250274,-500.0,0.00027397,4]
[327970719,1716730250284,-500.0,0.00027397,4]
[327970720,1716730250294,-500.0,0.00027397,7]
[327970721,1716730250303,-500.0,0.00027397,4]
[327970722,1716730250312,-500.0,0.00027397,4]
[327970723,1716730250323,-517.47099809,0.00027397,4]
[327970724,1716730250332,-1487.02,0.00027397,4]
[327970725,1716730250342,-500.0,0.00027397,4]
[327970726,1716730250351,-500.0,0.00027397,4]
[327970727,1716730250361,-386.92069865,0.00027397,4]
[327970728,1716730250370,-500.0,0.00027397,4]
[327970729,1716730250379,-500.0,0.00027397,4]
[327970730,1716730250389,-500.0,0.00027397,2]
[327970731,1716730250398,-151.0,0.00027397,7]
[327970732,1716730250407,-500.0,0.00027397,4]
[327970733,1716730250417,-500.0,0.00027397,4]
[327970734,1716730250427,-449.07889427,0.00027397,4]
[327970735,1716730250437,-500.0,0.00027397,4]
[327970736,1716730250446,-500.0,0.00027397,4]
[327970737,1716730250456,-500.0,0.00027397,4]
[327970738,1716730250465,-500.0,0.00027397,4]
[327970739,1716730250475,-500.0,0.00027397,4]
[327970740,1716730250485,-500.0,0.00027397,4]
[327970741,1716730250494,-500.0,0.00027397,4]
[327970742,1716730250504,-848.41,0.00027397,4]
[327970743,1716730250514,-500.0,0.00027397,4]
[327970744,1716730250523,-500.0,0.00027397,4]
[327970745,1716730250533,-500.0,0.00027397,4]
[327970746,1716730250542,-500.0,0.00027397,4]
[327970747,1716730250551,-500.0,0.00027397,4]
[327970748,1716730250561,-568.01,0.00027397,2]
[327970749,1716730250573,-500.0,0.00027397,4]
[327970750,1716730250582,-500.0,0.00027397,4]
[327970751,1716730250592,-500.0,0.00027397,4]
[327970752,1716730250601,-500.0,0.00027397,4]
[327970753,1716730250611,-500.0,0.00027397,4]
[327970754,1716730250621,-500.0,0.00027397,4]
[327970755,1716730250631,-591.46190302,0.00027397,4]
[327970756,1716730250641,-500.0,0.00027397,4]
[327970757,1716730250650,-500.0,0.00027397,4]
[327970758,1716730250660,-500.0,0.00027397,4]
[327970759,1716730250669,-500.0,0.00027397,4]
[327970760,1716730250678,-500.0,0.00027397,4]
[327970761,1716730250688,-500.0,0.00027397,4]
[327970762,1716730250698,-500.0,0.00027397,4]
[327970763,1716730250707,-500.0,0.00027397,4]
[327970764,1716730250717,-500.0,0.00027397,4]
[327970765,1716730250727,-500.0,0.00027397,4]
[327970766,1716730250741,-500.0,0.00027397,4]
[327970767,1716730250751,-500.0,0.00027397,4]
[327970768,1716730250762,-719.21,0.00027397,4]
[327970769,1716730250774,-500.0,0.00027397,4]
[327970770,1716730250784,-500.0,0.00027397,4]
[327970771,1716730250793,-500.0,0.00027397,4]
[327970772,1716730250803,-500.0,0.00027397,4]
[327970773,1716730250814,-500.0,0.00027397,4]
[327970774,1716730250824,-500.0,0.00027397,4]
[327970775,1716730250833,-500.0,0.00027397,4]
[327970776,1716730250844,-914.75,0.00027397,4]
[327970777,1716730250853,-500.0,0.00027397,4]
[327970778,1716730250863,-500.0,0.00027397,4]
[327970779,1716730250873,-951.83,0.00027397,4]
[327970780,1716730250883,-503.79,0.00027397,4]
[327970781,1716730250892,-3217.13,0.00027397,4]
[327970782,1716730250902,-681.07,0.00027397,4]
[327970783,1716730250913,-721.86,0.00027397,4]
[327970784,1716730250922,-733.5,0.00027397,4]
[327970785,1716730250933,-500.0,0.00027397,4]
[327970786,1716730250943,-602.19,0.00027397,4]
[327970787,1716730250953,-500.0,0.00027397,4]
[327970788,1716730250963,-930.09,0.00027397,4]
[327970789,1716730250973,-500.0,0.00027397,4]
[327970790,1716730250985,-500.0,0.00027397,4]
[327970791,1716730250995,-500.0,0.00027397,4]
[327970792,1716730251006,-500.0,0.00027397,4]
[327970793,1716730251015,-881.76,0.00027397,4]
[327970794,1716730251026,-601.82,0.00027397,4]
[327970795,1716730251035,-800.53,0.00027397,4]
[327970796,1716730251045,-500.0,0.00027397,2]
[327970797,1716730251055,-500.0,0.00027397,4]
[327970798,1716730251065,-538.6,0.00027397,4]
[327970799,1716730251076,-500.0,0.00027397,4]
[327970800,1716730251085,-1047.2,0.00027397,4]
[327970801,1716730251095,-604.13,0.00027397,4]
[327970802,1716730251105,-500.0,0.00027397,4]
[327970803,1716730251114,-500.0,0.00027397,4]
[327970804,1716730251124,-500.0,0.00027397,4]
[327970805,1716730251134,-500.0,0.00027397,4]
[327970806,1716730251143,-500.0,0.00027397,4]
[327970807,1716730251153,-500.0,0.00027397,4]
[327970808,1716730251162,-558.57,0.00027397,4]
[327970809,1716730251171,-500.0,0.00027397,4]
[327970810,1716730251180,-939.74,0.00027397,4]
[327970811,1716730251190,-502.41,0.00027397,4]
[327970812,1716730251199,-404.49601151,0.00027397,4]
[327970813,1716730251209,-863.14,0.00027397,4]
[327970814,1716730251218,-500.0,0.00027397,4]
[327970815,1716730251227,-622.71,0.00027397,4]
[327970816,1716730251237,-642.76,0.00027397,4]
[327970817,1716730251247,-500.0,0.00027397,4]
[327970818,1716730251256,-500.0,0.00027397,4]
[327970819,1716730251266,-500.0,0.00027397,4]
[327970820,1716730251276,-500.0,0.00027397,4]
[327970821,1716730251286,-791.59,0.00027397,4]
[327970822,1716730251296,-500.0,0.00027397,4]
[327970823,1716730251305,-500.0,0.00027397,4]
[327970824,1716730251315,-500.0,0.00027397,4]
[327970825,1716730251326,-500.0,0.00027397,4]
[327970826,1716730251335,-500.0,0.00027397,4]
[327970827,1716730251345,-500.0,0.00027397,4]
[327970828,1716730251355,-500.0,0.00027397,4]
[327970829,1716730251364,-500.0,0.00027397,4]
[327970830,1716730251374,-500.0,0.00027397,4]
[327970831,1716730251384,-500.0,0.00027397,4]
[327970832,1716730251394,-500.0,0.00027397,4]
[327970833,1716730251407,-791.9,0.00027397,4]
[327970834,1716730251417,-666.35,0.00027397,4]
[327970835,1716730251426,-636.08827406,0.00027397,4]
[327970836,1716730251436,-500.0,0.00027397,4]
[327970837,1716730251445,-705.76,0.00027397,4]
[327970838,1716730251455,-500.0,0.00027397,4]
[327970839,1716730251464,-500.0,0.00027397,4]
[327970840,1716730251474,-500.0,0.00027397,4]
[327970841,1716730251483,-500.0,0.00027397,4]
[327970842,1716730251494,-500.0,0.00027397,4]
[327970843,1716730251503,-500.0,0.00027397,4]
[327970844,1716730251513,-500.0,0.00027397,4]
[327970845,1716730251523,-500.0,0.00027397,4]
[327970846,1716730251532,-500.0,0.00027397,4]
[327970847,1716730251542,-500.0,0.00027397,4]
[327970848,1716730251552,-500.0,0.00027397,4]
[327970849,1716730251562,-890.04,0.00027397,4]
[327970850,1716730251571,-500.0,0.00027397,4]
[327970851,1716730251581,-500.0,0.00027397,4]
[327970852,1716730251590,-500.0,0.00027397,4]
[327970853,1716730251600,-500.0,0.00027397,4]
[327970854,1716730251610,-500.0,0.00027397,4]
[327970855,1716730251619,-1259.26,0.00027397,4]
[327970856,1716730251629,-633.4,0.00027397,4]
[327970857,1716730251638,-500.0,0.00027397,4]
[327970858,1716730251648,-500.0,0.00027397,4]
[327970859,1716730251658,-500.0,0.00027397,4]
[327970860,1716730251667,-601.4,0.00027397,4]
[327970861,1716730251677,-500.0,0.00027397,4]
[327970862,1716730251687,-500.0,0.00027397,4]
[327970863,1716730251697,-500.0,0.00027397,4]
[327970864,1716730251952,-500.0,0.00027397,4]
[327970865,1716730251972,-500.0,0.00027397,4]
[327970866,1716730251982,-500.0,0.00027397,4]
[327970867,1716730251991,-559.39,0.00027397,4]
[327970868,1716730252001,-500.0,0.00027397,4]
[327970869,1716730252010,-500.0,0.00027397,4]
[327970870,1716730252020,-533.58,0.00027397,4]
[327970871,1716730252029,-500.0,0.00027397,4]
[327970872,1716730252040,-500.0,0.00027397,4]
[327970873,1716730252050,-907.28,0.00027397,4]
[327970874,1716730252059,-500.0,0.00027397,4]
[327970875,1716730252068,-500.0,0.00027397,4]
[327970876,1716730252078,-624.2,0.00027397,4]
[327970877,1716730252088,-650.89,0.00027397,4]
[327970878,1716730252097,-500.0,0.00027397,4]
[327970879,1716730252107,-523.19,0.00027397,4]
[327970880,1716730252117,-500.0,0.00027397,4]
[327970881,1716730252126,-589.63,0.00027397,4]
[327970882,1716730252135,-500.0,0.00027397,4]
[327970883,1716730252144,-500.0,0.00027397,4]
[327970884,1716730252154,-600.01,0.00027397,4]
[327970885,1716730252163,-500.0,0.00027397,4]
[327970886,1716730252173,-500.0,0.00027397,4]
[327970887,1716730252183,-500.0,0.00027397,4]
[327970888,1716730252192,-500.0,0.00027397,4]
[327970889,1716730252202,-500.0,0.00027397,4]
[327970890,1716730252211,-186.98,0.00027397,4]
[327970891,1716730252220,-500.0,0.00027397,4]
[327970892,1716730252231,-500.0,0.00027397,4]
[327970893,1716730252240,-500.0,0.00027397,4]
[327970894,1716730252250,-500.0,0.00027397,4]
[327970895,1716730252259,-500.0,0.00027397,4]
[327970896,1716730252269,-693.16,0.00027397,4]
[327970897,1716730252279,-500.0,0.00027397,4]
[327970898,1716730252290,-500.0,0.00027397,4]
[327970899,1716730252300,-500.0,0.00027397,4]
[327970900,1716730252311,-500.0,0.00027397,4]
[327970901,1716730252322,-521.35,0.00027397,4]
[327970902,1716730252331,-500.0,0.00027397,4]
[327970903,1716730252341,-556.08,0.00027397,4]
[327970904,1716730252350,-500.0,0.00027397,4]
[327970905,1716730252359,-502.92,0.00027397,4]
[327970906,1716730252369,-500.0,0.00027397,4]
[327970907,1716730252378,-500.0,0.00027397,4]
[327970908,1716730252387,-500.0,0.00027397,4]
[327970909,1716730252397,-500.0,0.00027397,4]
[327970910,1716730252406,-500.0,0.00027397,4]
[327970911,1716730252416,-500.0,0.00027397,4]
[327970912,1716730252425,-500.0,0.00027397,4]
[327970913,1716730252435,-500.0,0.00027397,4]
[327970914,1716730252444,-500.0,0.00027397,4]
[327970915,1716730252453,-500.0,0.00027397,4]
[327970916,1716730252463,-617.93,0.00027397,4]
[327970917,1716730252474,-500.0,0.00027397,4]
[327970918,1716730252484,-500.0,0.00027397,4]
[327970919,1716730252494,-500.0,0.00027397,4]
[327970920,1716730252503,-500.0,0.00027397,4]
[327970921,1716730252512,-500.0,0.00027397,4]
[327970922,1716730252521,-500.0,0.00027397,4]
[327970923,1716730252531,-898.79,0.00027397,4]
[327970924,1716730252541,-523.28,0.00027397,4]
[327970925,1716730252550,-9440.84,0.00027397,4]
[327970926,1716730252559,-1270.06,0.00027397,4]
[327970927,1716730252569,-500.0,0.00027397,4]
[327970928,1716730252579,-816.0,0.00027397,4]
[327970929,1716730252589,-640.27,0.00027397,4]
[327970930,1716730252598,-978.47,0.00027397,4]
[327970931,1716730252608,-1600.2,0.00027397,4]
[327970932,1716730252616,-1641.74,0.00027397,4]
[327970933,1716730252626,-500.0,0.00027397,4]
[327970934,1716730252635,-638.47,0.00027397,4]
[327970935,1716730252644,-685.49,0.00027397,4]
[327970936,1716730252653,-740.85,0.00027397,4]
[327970937,1716730252663,-500.0,0.00027397,4]
[327970938,1716730252673,-335.0548343,0.00027397,4]
[327970939,1716730252683,-548.76,0.00027397,4]
[327970940,1716730252692,-500.0,0.00027397,4]
[327970941,1716730252702,-771.97,0.00027397,4]
[327970942,1716730252711,-889.91,0.00027397,4]
[327970943,1716730252721,-547.05,0.00027397,4]
[327970944,1716730252736,-513.53,0.00027397,4]
[327970945,1716730252749,-811.51,0.00027397,4]
[327970946,1716730252758,-1378.05,0.00027397,4]
[327970947,1716730252767,-756.38,0.00027397,4]
[327970948,1716730252779,-500.0,0.00027397,4]
[327970949,1716730252788,-500.0,0.00027397,4]
[327970950,1716730252798,-485.13492962,0.00027397,4]
[327970951,1716730252807,-826.63,0.00027397,4]
[327970952,1716730252818,-686.13,0.00027397,4]
[327970953,1716730252828,-1951.93,0.00027397,4]
[327970954,1716730252838,-500.0,0.00027397,4]
[327970955,1716730252847,-500.0,0.00027397,4]
[327970956,1716730252857,-500.0,0.00027397,4]
[327970957,1716730252867,-564.35,0.00027397,4]
[327970958,1716730252876,-896.61,0.00027397,4]
[327970959,1716730252885,-570.13494412,0.00027397,4]
[327970960,1716730252895,-500.0,0.00027397,4]
[327970961,1716730252904,-504.56,0.00027397,4]
[327970962,1716730252915,-546.34,0.00027397,4]
[327970963,1716730252925,-2648.48,0.00027397,4]
[327970964,1716730252935,-500.0,0.00027397,4]
[327970965,1716730252944,-1458.47,0.00027397,4]
[327970966,1716730252953,-3064.76,0.00027397,4]
[327970967,1716730252962,-500.0,0.00027397,4]
[327970968,1716730252971,-500.0,0.00027397,4]
[327970969,1716730252981,-567.24,0.00027397,4]
[327970970,1716730252990,-576.76,0.00027397,4]
[327970971,1716730253000,-6469.31,0.00027397,4]
[327970972,1716730253009,-223.30802607,0.00027397,4]
[327970973,1716730253019,-500.0,0.00027397,4]
[327970974,1716730253030,-500.0,0.00027397,4]
[327970975,1716730253040,-691.27,0.00027397,4]
[327970976,1716730253050,-500.0,0.00027397,4]
[327970977,1716730253059,-624.58,0.00027397,4]
[327970978,1716730253069,-500.0,0.00027397,4]
[327970979,1716730253079,-596.59,0.00027397,4]
[327970980,1716730253088,-500.0,0.00027397,4]
[327970981,1716730253098,-500.0,0.00027397,4]
[327970982,1716730253108,-500.0,0.00027397,4]
[327970983,1716730253118,-2676.34,0.00027397,4]
[327970984,1716730253127,-500.0,0.00027397,4]
[327970985,1716730253137,-515.26,0.00027397,4]
[327970986,1716730253146,-830.57,0.00027397,4]
[327970987,1716730253156,-500.0,0.00027397,4]
[327970988,1716730253166,-1198.41,0.00027397,4]
[327970989,1716730253175,-685.05,0.00027397,4]
[327970990,1716730253185,-500.0,0.00027397,4]
[327970991,1716730253194,-500.0,0.00027397,4]
[327970992,1716730253204,-500.0,0.00027397,4]
[327970993,1716730253214,-611.17,0.00027397,4]
[327970994,1716730253223,-300.78806884,0.00027397,4]
[327970995,1716730253233,-1072.57,0.00027397,4]
[327970996,1716730253243,-500.0,0.00027397,4]
[327970997,1716730253253,-854.1,0.00027397,4]
[327970998,1716730253262,-1367.48,0.00027397,4]
[327970999,1716730253271,-1323.4,0.00027397,4]
[327971000,1716730253281,-707.66,0.00027397,4]
[327971001,1716730253291,-2494.65,0.00027397,4]
[327971002,1716730253302,-596.1,0.00027397,4]
[327971003,1716730253312,-1086.44,0.00027397,4]
[327971004,1716730253322,-500.0,0.00027397,4]
[327971005,1716730253332,-500.0,0.00027397,4]
[327971006,1716730253341,-1132.61,0.00027397,4]
[327971007,1716730253351,-500.0,0.00027397,4]
[327971008,1716730253360,-1010.07,0.00027397,4]
[327971009,1716730253369,-500.0,0.00027397,4]
[327971010,1716730253379,-500.0,0.00027397,4]
[327971011,1716730253388,-647.51,0.00027397,4]
[327971012,1716730253398,-500.0,0.00027397,4]
[327971013,1716730253407,-4074.03,0.00027397,4]
[327971014,1716730253417,-598.08,0.00027397,4]
[327971015,1716730253427,-1250.11,0.00027397,4]
[327971016,1716730253437,-514.23898255,0.00027397,4]
[327971017,1716730253447,-752.28,0.00027397,4]
[327971018,1716730253456,-741.35,0.00027397,4]
[327971019,1716730253465,-500.0,0.00027397,4]
[327971020,1716730253475,-1136.97,0.00027397,4]
[327971021,1716730253484,-632.68,0.00027397,4]
[327971022,1716730253493,-1126.89,0.00027397,4]
[327971023,1716730253504,-500.0,0.00027397,4]
[327971024,1716730253513,-617.23,0.00027397,4]
[327971025,1716730253522,-500.0,0.00027397,4]
[327971026,1716730253532,-923.84,0.00027397,4]
[327971027,1716730253541,-500.0,0.00027397,4]
[327971028,1716730253551,-500.0,0.00027397,4]
[327971029,1716730253560,-954.65,0.00027397,4]
[327971030,1716730253569,-730.32,0.00027397,4]
[327971031,1716730253580,-918.01,0.00027397,4]
[327971032,1716730253589,-675.89,0.00027397,4]
[327971033,1716730253599,-1710.23,0.00027397,4]
[327971034,1716730253608,-922.44,0.00027397,4]
[327971035,1716730253618,-500.0,0.00027397,4]
[327971036,1716730253627,-1124.44,0.00027397,4]
[327971037,1716730253637,-1014.91,0.00027397,4]
[327971038,1716730253646,-500.0,0.00027397,4]
[327971039,1716730253655,-9072.36,0.00027397,4]
[327971040,1716730253666,-500.0,0.00027397,4]
[327971041,1716730253675,-907.66,0.00027397,4]
[327971042,1716730253685,-500.0,0.00027397,4]
[327971043,1716730253694,-500.0,0.00027397,4]
[327971044,1716730253704,-1370.81,0.00027397,4]
[327971045,1716730253714,-748.61,0.00027397,4]
[327971046,1716730253724,-652.62,0.00027397,4]
[327971047,1716730253738,-890.76,0.00027397,4]
[327971048,1716730253748,-1149.44,0.00027397,4]
[327971049,1716730253757,-500.0,0.00027397,4]
[327971050,1716730253766,-887.49,0.00027397,4]
[327971051,1716730253776,-1921.89,0.00027397,4]
[327971052,1716730253788,-1186.9,0.00027397,4]
[327971053,1716730253798,-500.0,0.00027397,4]
[327971054,1716730253808,-595.13,0.00027397,4]
[327971055,1716730253822,-500.0,0.00027397,4]
[327971056,1716730253833,-500.0,0.00027397,4]
[327971057,1716730253842,-1072.67,0.00027397,4]
[327971058,1716730253851,-593.59,0.00027397,4]
[327971059,1716730253862,-500.0,0.00027397,4]